Department Family,Entity,Date,Expense Type,Expense Area,Supplier,Transaction Number,Amount
DOH,London Ambulance Service NHS Trust,04/12/2012,3rd Party - Other Costs,Olympics Pre-Planned Aid,North West Ambulance Service Nhs Trust,191,25263.96
DOH,London Ambulance Service NHS Trust,04/12/2012,Bt Phone Bills,Balance Sheet,Bt Plc,25157,221889.24
DOH,London Ambulance Service NHS Trust,04/12/2012,Building Maint-Planned,Oval Estates,Arena Maintenance Contractors,21825,45645.48
DOH,London Ambulance Service NHS Trust,04/12/2012,Capitalised Software,Capital,Northrop Grumman Information Technology,24660,63449
DOH,London Ambulance Service NHS Trust,04/12/2012,Cleaning Of Premises,Estate Management,Lakethorne Ltd,24774,51530.71
DOH,London Ambulance Service NHS Trust,04/12/2012,Cleaning Of Vehicles Makeready,Corporate Logistics,Initial Hospital Services,21989,210658.92
DOH,London Ambulance Service NHS Trust,04/12/2012,Printing & Stationery,Corporate Logistics,Service Point Uk,24372,25132.8
DOH,London Ambulance Service NHS Trust,04/12/2012,Private Ambulance Hire,Deputy Director Of Operations,X9 Services,22623,26334
DOH,London Ambulance Service NHS Trust,04/12/2012,St John Ambulance Service,Deputy Director Of Operations,St John Ambulance Londonprince,24747,86054.5
DOH,London Ambulance Service NHS Trust,10/12/2012,Fleet Maintenance,Fleet Support Services,Ats Euromaster Ltd,26068,50972.46
DOH,London Ambulance Service NHS Trust,10/12/2012,Fleet Maintenance,Fleet Support Services,Rac Motoring Services,22962,36000
DOH,London Ambulance Service NHS Trust,11/12/2012,Rent,Hart,Jones Lang Lasalle,26191,58764
DOH,London Ambulance Service NHS Trust,11/12/2012,Service Charges,Hart,Jones Lang Lasalle,26191,1993.2
DOH,London Ambulance Service NHS Trust,13/12/2012,Ips Maintenance,Fleet Support Services,Baumot Uk Ltd,26655,35204.4
DOH,London Ambulance Service NHS Trust,13/12/2012,Mechanical Planned Replacement,St Andrews House Estates,Ves,26859,76503.36
DOH,London Ambulance Service NHS Trust,13/12/2012,Mechanical Planned Replacement,St Andrews House Estates,Ves,26860,95629.2
DOH,London Ambulance Service NHS Trust,13/12/2012,Rent,Fielden House,Fielden House Investment Ltd,26894,24150
DOH,London Ambulance Service NHS Trust,13/12/2012,Service Charges,Fielden House,Fielden House Investment Ltd,26894,10270.97
DOH,London Ambulance Service NHS Trust,13/12/2012,Rent,Fielden House,Fielden House Investment Ltd,26895,28067.7
DOH,London Ambulance Service NHS Trust,13/12/2012,Service Charges,Fielden House,Fielden House Investment Ltd,26895,12266.84
DOH,London Ambulance Service NHS Trust,14/12/2012,Data Network Rental,Networks Non Pay,Bt Global Services,27132,66969.2
DOH,London Ambulance Service NHS Trust,18/12/2012,Computer Software Maintenance,Im&T Systems Support,Software Enterprises (Uk) Ltd,24745,42000
DOH,London Ambulance Service NHS Trust,19/12/2012,Data Network Rental,Networks Non Pay,Siemens Communications Ltd  B/D,27156,32347.44
DOH,London Ambulance Service NHS Trust,19/12/2012,Drugs,Supply & Material Management,Frimley Park Hospital Nhsfoundationtrust,265,26058.21
DOH,London Ambulance Service NHS Trust,19/12/2012,Private Ambulance Hire,Deputy Director Of Operations,Ast Ambulance Service Ltd,28232,33276.25
DOH,London Ambulance Service NHS Trust,20/12/2012,3rd Party - Other Costs,Olympic Deployment Centre,Metropolitan Police Service,28755,84049.3
DOH,London Ambulance Service NHS Trust,20/12/2012,Fleet Maintenance,Fleet Support Services,Rac Motoring Services,28770,36000
DOH,London Ambulance Service NHS Trust,20/12/2012,Private Ambulance Hire,Deputy Director Of Operations,Ast Ambulance Service Ltd,28757,36793.45
DOH,London Ambulance Service NHS Trust,20/12/2012,Private Ambulance Hire,Deputy Director Of Operations,Ast Ambulance Service Ltd,28758,61529
DOH,London Ambulance Service NHS Trust,20/12/2012,Private Ambulance Hire,Deputy Director Of Operations,X9 Services,28464,26160.75
DOH,London Ambulance Service NHS Trust,20/12/2012,St John Ambulance Service,Deputy Director Of Operations,St John Ambulance Londonprince,28794,97562.5
DOH,London Ambulance Service NHS Trust,21/12/2012,Buildings Insurance,Neasden Estates,Jones Lang Lasalle,29392,1074.3
DOH,London Ambulance Service NHS Trust,21/12/2012,Rent,Neasden Estates,Jones Lang Lasalle,29392,29010
DOH,London Ambulance Service NHS Trust,21/12/2012,Private Ambulance Hire,Deputy Director Of Operations,Mediforce Ltd,28472,53103.75
DOH,London Ambulance Service NHS Trust,21/12/2012,Rent,Cody Road Ambulance Station,Cbre Ltd,29278,62901.3
DOH,London Ambulance Service NHS Trust,21/12/2012,Rent,Loman Street,Good Harvest Group Limited,29389,29621.91
DOH,London Ambulance Service NHS Trust,04/12/2012,Ensign Insurance Debtor,Control Accounts,QBE International Insurance T/A Ensign,2234,"228,286.50"
DOH,London Ambulance Service NHS Trust,18/12/2012,CNST Contributions,Legal Services,NHSLA,2530,71580
DOH,London Ambulance Service NHS Trust,18/12/2012,Liability to 3rd Party Scheme,Legal Services,NHSLA,2530,19448
DOH,London Ambulance Service NHS Trust,18/12/2012,Property Expenses Scheme,Legal Services,NHSLA,2530,2280
DOH,London Ambulance Service NHS Trust,18/12/2012,BP Control Account,Control Accounts,BP Oil,2530,255397.07
DOH,London Ambulance Service NHS Trust,21/12/2012,Child Care Arrangements,Payroll,Busy Bees Childcare Ltd,2545,"26,357.84"
DOH,London Ambulance Service NHS Trust,31/12/2012,BOC Control Account,Control Accounts,British Oxygen,2575,101081.26
DOH,London Ambulance Service NHS Trust,31/12/2012,BP Control Account,Control Accounts,BP Oil,2597,267664.69
